bitfinex/quotes_BTCUSD_20241003
["timestamp","ask_amount","ask_price","bid_price","bid_amount"]
[1727998564669,0.58451368,60885.0,60884.0,0.001636]
[1727998568732,0.70747453,60885.0,60884.0,0.001636]
[1727998568952,0.58451368,60885.0,60884.0,0.001636]
[1727998569603,0.3742811,60885.0,60884.0,0.001636]
[1727998571157,0.33301593,60885.0,60884.0,0.001636]
[1727998571380,0.3742811,60885.0,60884.0,0.001636]
[1727998572058,0.49725993,60885.0,60884.0,0.001636]
[1727998573908,0.33301593,60885.0,60884.0,0.001636]
[1727998574132,0.30843511,60885.0,60884.0,0.165882]
[1727998574353,0.2100371,60885.0,60884.0,0.165882]
[1727998574794,0.30843413,60885.0,60884.0,0.165882]
[1727998575257,0.30843413,60885.0,60884.0,0.267782]
[1727998575258,0.2100371,60885.0,60884.0,0.267782]
[1727998575490,0.22137586,60886.0,60885.0,0.164244]
[1727998575730,0.12297883,60886.0,60885.0,0.45002453]
[1727998575954,0.12297883,60886.0,60885.0,0.55352453]
[1727998576423,0.000818,60890.0,60889.0,0.164233]
[1727998576639,0.000818,60890.0,60889.0,0.45001353]
[1727998576869,0.000818,60890.0,60886.0,0.12259382]
[1727998577110,0.164233,60889.0,60886.0,0.16424]
[1727998577533,0.04999464,60890.0,60886.0,0.328482]
[1727998577790,0.04999464,60890.0,60889.0,0.166233]
[1727998578224,0.04999464,60890.0,60889.0,0.164233]
[1727998578458,0.04999464,60890.0,60886.0,0.003]
[1727998578680,0.164234,60889.0,60886.0,0.003]
[1727998578898,0.164233,60889.0,60886.0,0.167241]
[1727998579128,0.04998181,60890.0,60886.0,0.003]
[1727998579353,0.04998181,60890.0,60889.0,0.164233]
[1727998579834,0.04998181,60890.0,60889.0,0.32741971]
[1727998580099,0.000818,60890.0,60889.0,0.35041971]
[1727998580346,0.000818,60890.0,60889.0,0.52581971]
[1727998580573,0.000818,60890.0,60889.0,0.52781971]
[1727998581034,0.000818,60890.0,60889.0,0.52581971]
[1727998581942,0.000818,60890.0,60889.0,0.43831971]
[1727998582162,0.000818,60890.0,60889.0,0.43631971]
[1727998582385,0.00640165,60890.0,60889.0,0.45031971]
[1727998582605,0.00640165,60890.0,60889.0,0.43631971]
[1727998582857,0.000818,60890.0,60889.0,0.43631971]
[1727998583083,0.000818,60890.0,60889.0,0.44731971]
[1727998583306,0.000818,60890.0,60889.0,0.43331971]
[1727998583527,0.000818,60890.0,60889.0,0.44731971]
[1727998583743,0.000818,60890.0,60889.0,0.43631971]
[1727998583932,0.000818,60890.0,60889.0,0.42231971]
[1727998584081,0.000818,60890.0,60889.0,0.43131971]
[1727998584298,0.000818,60890.0,60889.0,0.17218671]
[1727998584499,0.0892016,60890.0,60889.0,0.009]
[1727998584787,0.2534316,60890.0,60889.0,0.009]
[1727998585241,0.2534316,60890.0,60889.0,0.018]
[1727998585983,0.0064016,60890.0,60889.0,0.018]
[1727998586220,0.1706316,60890.0,60889.0,0.018]
[1727998586428,0.1706316,60890.0,60889.0,0.019636]
[1727998587396,0.2534316,60890.0,60889.0,0.019636]
[1727998588785,0.2534316,60890.0,60889.0,0.010636]
[1727998589025,0.2534316,60890.0,60889.0,0.014636]
[1727998589290,0.2534316,60890.0,60889.0,0.001636]
[1727998589510,0.5661237,60890.0,60889.0,0.005636]
[1727998589759,0.5651237,60890.0,60889.0,0.005636]
[1727998589996,0.5641237,60890.0,60889.0,0.001636]
[1727998590258,0.5651237,60890.0,60889.0,0.002636]
[1727998590501,0.5661237,60890.0,60889.0,0.002636]
[1727998590736,0.5691237,60890.0,60889.0,0.003636]
[1727998590968,0.5681237,60890.0,60889.0,0.002636]
[1727998591205,0.5681237,60890.0,60889.0,0.003636]
[1727998592084,0.5661237,60890.0,60889.0,0.002636]
[1727998592318,0.5781237,60890.0,60889.0,0.003636]
[1727998593248,0.60387373,60890.0,60889.0,0.003636]
[1727998593797,0.85043249,60890.0,60889.0,0.003636]
[1727998594290,0.62196335,60885.0,60884.0,0.001636]
[1727998594536,0.84186982,60885.0,60884.0,0.001636]
[1727998595454,0.85086982,60885.0,60884.0,0.002636]
[1727998595676,0.85241151,60885.0,60884.0,0.002636]
[1727998595898,0.40970545,60885.0,60884.0,0.002636]
[1727998596105,0.35740006,60885.0,60884.0,0.002636]
[1727998596347,0.35940006,60885.0,60884.0,0.003636]
[1727998599983,0.38515115,60885.0,60884.0,0.003636]
[1727998600597,0.164273,60874.0,60871.0,0.000818]
[1727998600799,0.164279,60872.0,60871.0,0.000818]
[1727998601220,0.17019147,60872.0,60871.0,0.000818]
[1727998601988,0.17019147,60872.0,60871.0,0.005818]
[1727998603106,0.17019147,60872.0,60871.0,0.007818]
[1727998603524,0.17019147,60872.0,60871.0,0.005818]
[1727998603744,0.33337818,60872.0,60871.0,0.005818]
[1727998603969,0.40676076,60872.0,60871.0,0.005818]
[1727998604211,0.53203529,60872.0,60871.0,0.005818]
[1727998604449,0.73737139,60872.0,60871.0,0.005818]
[1727998604681,0.7372818,60872.0,60871.0,0.000818]
[1727998605372,0.71152469,60872.0,60871.0,0.000818]
[1727998605593,0.72452469,60872.0,60871.0,0.001818]
[1727998606112,0.72352469,60872.0,60871.0,0.001818]
[1727998606317,0.73452469,60872.0,60871.0,0.002818]
[1727998609218,0.70249883,60872.0,60871.0,0.002818]
[1727998609445,0.99900298,60872.0,60871.0,0.002818]
[1727998609688,1.09665687,60872.0,60871.0,0.002818]
[1727998609919,0.93347016,60872.0,60871.0,0.002818]
[1727998610167,0.93347016,60872.0,60860.0,0.24716589]
[1727998610168,0.002,60869.0,60860.0,0.24716589]
[1727998610416,0.42752735,60861.0,60860.0,0.24716589]
[1727998610638,0.69650396,60861.0,60860.0,0.24716589]
[1727998610857,0.69650396,60861.0,60860.0,0.000818]
[1727998611736,0.71050396,60861.0,60860.0,0.002818]
[1727998612178,0.73626575,60861.0,60860.0,0.001818]
[1727998612614,0.75026575,60861.0,60860.0,0.002818]
[1727998613336,0.2980979,60861.0,60860.0,0.002818]
[1727998623004,0.46128461,60861.0,60860.0,0.002818]
[1727998623452,0.54398461,60861.0,60860.0,0.002818]
[1727998625768,0.56974685,60861.0,60860.0,0.002818]
[1727998627571,0.62181187,60861.0,60860.0,0.002818]
[1727998628476,0.59604963,60861.0,60860.0,0.002818]
[1727998628925,0.54398461,60861.0,60860.0,0.002818]
[1727998630248,0.59607141,60861.0,60860.0,0.002818]
[1727998631791,0.67064565,60861.0,60860.0,0.002818]
[1727998632221,0.69505147,60861.0,60860.0,0.002818]
[1727998632665,0.67066573,60861.0,60860.0,0.002818]
[1727998632894,0.64490314,60861.0,60860.0,0.002818]
[1727998633762,0.64492429,60861.0,60860.0,0.002818]
[1727998634001,0.59607141,60861.0,60860.0,0.002818]
[1727998634232,0.66928888,60861.0,60860.0,0.002818]
[1727998635355,0.4328847,60861.0,60860.0,0.002818]
[1727998635588,0.61970405,60861.0,60860.0,0.002818]
[1727998635807,0.4328847,60861.0,60860.0,0.002818]
[1727998636046,0.3501847,60861.0,60860.0,0.002818]
[1727998636265,0.39908269,60861.0,60860.0,0.002818]
[1727998636491,0.3501847,60861.0,60860.0,0.002818]
[1727998636708,0.70019076,60861.0,60860.0,0.002818]
[1727998637151,0.90616006,60861.0,60860.0,0.002818]
[1727998637596,0.98886006,60861.0,60860.0,0.002818]
[1727998637841,0.99086006,60861.0,60860.0,0.002818]
[1727998638051,0.98886006,60861.0,60860.0,0.002818]
[1727998638266,1.11110948,60861.0,60860.0,0.002818]
[1727998640247,0.98886006,60861.0,60860.0,0.002818]
[1727998641387,0.80210719,60861.0,60860.0,0.002818]
[1727998644677,0.55622048,60861.0,60860.0,0.002818]
[1727998645113,0.45622048,60861.0,60860.0,0.002818]
[1727998645330,0.45622048,60861.0,60860.0,0.098918]
[1727998645331,0.5542368,60861.0,60860.0,0.098918]
[1727998645593,0.1980979,60861.0,60860.0,0.098918]
[1727998646253,0.1840979,60861.0,60860.0,0.097918]
[1727998646474,0.1900979,60861.0,60860.0,0.097918]
[1727998646685,0.1760979,60861.0,60860.0,0.096918]
[1727998648007,0.1700979,60861.0,60860.0,0.096918]
[1727998648235,0.47567704,60861.0,60860.0,0.096918]
[1727998648454,0.47567704,60861.0,60860.0,0.099918]
[1727998650230,0.37766072,60861.0,60860.0,0.099918]
[1727998650676,0.21335272,60861.0,60860.0,0.099918]
[1727998650945,0.1700979,60861.0,60860.0,0.176418]
[1727998652064,0.0057899,60861.0,60860.0,0.176418]
[1727998652283,0.1700979,60861.0,60860.0,0.176418]
[1727998653387,0.24373337,60861.0,60860.0,0.176418]
[1727998653829,0.1700979,60861.0,60860.0,0.176418]
[1727998655781,0.05486062,60861.0,60860.0,0.176418]
[1727998656255,0.21916862,60861.0,60860.0,0.176418]
[1727998659559,0.1700979,60861.0,60860.0,0.176418]
[1727998660817,0.0057899,60861.0,60860.0,0.176418]
[1727998661037,0.1700979,60861.0,60860.0,0.176418]
[1727998661280,0.0057899,60861.0,60860.0,0.176418]
[1727998662139,0.1700979,60861.0,60860.0,0.176418]
[1727998662360,0.0057899,60861.0,60860.0,0.176418]
[1727998662577,0.1700979,60861.0,60860.0,0.176418]
[1727998662795,0.04905311,60864.0,60860.0,0.176418]
[1727998663015,0.164308,60862.0,60860.0,0.176418]
[1727998663457,0.164308,60861.0,60860.0,0.176418]
[1727998663703,0.00618168,60861.0,60860.0,0.174418]
[1727998663918,0.164308,60861.0,60860.0,0.174418]
[1727998664132,0.17048972,60861.0,60860.0,0.174418]
[1727998664777,0.17048972,60861.0,60860.0,0.176418]
[1727998665241,0.17048972,60861.0,60860.0,0.175418]
[1727998665603,0.00618172,60861.0,60860.0,0.339729]
[1727998665820,0.21335111,60865.0,60861.0,0.164306]
[1727998665998,0.21335111,60865.0,60860.0,0.340728]
[1727998665999,0.00618172,60861.0,60860.0,0.340728]
[1727998666657,0.164304,60863.0,60860.0,0.338728]
[1727998666865,0.00618172,60861.0,60860.0,0.338728]
[1727998667082,0.164304,60863.0,60860.0,0.338728]
[1727998667322,0.00618172,60861.0,60860.0,0.338728]
[1727998667802,0.19005787,60864.0,60860.0,0.340728]
[1727998668043,0.00618168,60863.0,60860.0,0.340728]
[1727998668277,0.00618168,60863.0,60860.0,0.176418]
[1727998668502,0.00618168,60863.0,60861.0,0.164308]
[1727998668720,0.00718168,60863.0,60861.0,0.164308]
[1727998669655,0.00618168,60863.0,60861.0,0.164308]
[1727998669915,0.00718168,60863.0,60861.0,0.164308]
[1727998670173,0.00718168,60863.0,60862.0,0.164306]
[1727998670415,0.00718168,60863.0,60862.0,0.50419271]
[1727998670416,0.001,60863.0,60862.0,0.50419271]
[1727998670650,0.001,60863.0,60862.0,0.62719271]
[1727998670911,0.002,60863.0,60862.0,0.62719271]
[1727998671191,0.001636,60870.0,60869.0,0.164287]
[1727998671450,0.00658121,60870.0,60869.0,0.65219379]
[1727998671676,0.001636,60870.0,60869.0,0.64987861]
[1727998672878,0.002636,60870.0,60869.0,0.65287861]
[1727998673359,0.003636,60870.0,60869.0,0.65987861]
[1727998673594,0.003636,60870.0,60869.0,0.72401092]
[1727998673833,0.002636,60870.0,60869.0,0.71701092]
[1727998674069,0.002636,60870.0,60869.0,0.72401092]
[1727998674070,0.003636,60870.0,60869.0,0.72401092]
[1727998677419,0.003636,60870.0,60869.0,0.72831344]
[1727998680534,0.003636,60870.0,60869.0,0.82831344]
[1727998680757,0.003636,60870.0,60869.0,0.83031344]
[1727998681207,0.003636,60870.0,60869.0,0.83531344]
[1727998681443,0.24634789,60884.0,60869.0,0.83531344]
[1727998681444,0.24634789,60884.0,60883.0,0.340949]
[1727998681708,0.24634789,60884.0,60883.0,0.81397292]
[1727998681935,0.000818,60890.0,60889.0,0.263933]
[1727998682165,0.00706407,60890.0,60889.0,0.61395692]
[1727998682376,0.000818,60890.0,60889.0,0.61395692]
[1727998683033,0.001818,60890.0,60889.0,0.61795692]
[1727998683269,0.000818,60890.0,60889.0,0.63695692]
[1727998683485,0.001818,60890.0,60889.0,0.64395692]
[1727998684629,0.002818,60890.0,60889.0,0.65595692]
[1727998685109,0.002818,60890.0,60889.0,0.36941971]
[1727998685349,0.002818,60890.0,60889.0,0.37357842]
[1727998696711,0.002818,60890.0,60889.0,0.35057842]
[1727998696959,0.00923276,60890.0,60889.0,0.35057842]
[1727998697687,0.00923276,60890.0,60889.0,0.37357842]
[1727998697890,0.00923276,60890.0,60889.0,0.54147842]
[1727998698092,0.002818,60890.0,60889.0,0.54147842]
[1727998699384,0.002818,60890.0,60889.0,0.46487842]
[1727998700076,0.002818,60890.0,60889.0,0.18739171]
[1727998701416,0.002818,60890.0,60889.0,0.35057842]
[1727998713059,0.002818,60890.0,60889.0,0.42717842]
[1727998715380,0.002818,60890.0,60889.0,0.45017842]
[1727998715607,0.002818,60890.0,60889.0,0.57272694]
[1727998719322,0.002818,60890.0,60889.0,0.76392694]
[1727998719538,0.24716589,60900.0,60899.0,0.187206]
[1727998719759,0.24716589,60900.0,60899.0,0.66414123]
[1727998719981,0.25360247,60900.0,60899.0,0.66414123]
[1727998720202,0.00725458,60900.0,60899.0,0.66414123]
[1727998720421,0.000818,60900.0,60899.0,0.66414123]
[1727998720854,0.001818,60900.0,60899.0,0.67514123]
[1727998721070,0.001818,60900.0,60899.0,0.66414123]
[1727998721315,0.001818,60900.0,60899.0,0.66914123]
[1727998721529,0.002818,60900.0,60899.0,0.68314123]
[1727998721742,0.002818,60900.0,60899.0,0.67814123]
[1727998722211,0.002818,60900.0,60899.0,0.69214123]
[1727998723767,0.002818,60900.0,60899.0,1.00685358]
[1727998723988,0.24634789,60912.0,60911.0,0.37383162]
[1727998724216,0.24634789,60912.0,60911.0,0.53701833]
[1727998724436,0.25219369,60912.0,60911.0,0.53701833]
[1727998724671,0.0058458,60912.0,60911.0,0.53701833]
[1727998725125,0.00055476,60917.0,60916.0,0.16416]
[1727998725567,0.00645351,60917.0,60916.0,0.16416]
[1727998726920,0.00645351,60917.0,60916.0,0.32734671]
[1727998727138,0.00645351,60917.0,60916.0,0.35034671]
[1727998727367,0.00055476,60917.0,60916.0,0.35034671]
[1727998727876,0.00055476,60917.0,60916.0,0.44579828]
[1727998728093,0.00055476,60917.0,60916.0,0.62839828]
[1727998728519,0.00055476,60917.0,60916.0,0.63439828]
[1727998728742,0.00055476,60917.0,60916.0,0.62339828]
[1727998728963,0.00055476,60917.0,60916.0,0.63439828]
[1727998729849,0.00055476,60917.0,60916.0,0.64539828]
[1727998730297,0.00055476,60917.0,60916.0,0.62339828]
[1727998730726,0.00055476,60917.0,60916.0,0.65139828]
[1727998732089,0.00055476,60917.0,60916.0,0.57379828]
[1727998734023,0.00055476,60917.0,60916.0,0.48259828]
[1727998742079,0.00055476,60917.0,60916.0,0.31843828]
[1727998746141,0.00055476,60917.0,60916.0,0.03225157]
[1727998746142,0.16471176,60917.0,60916.0,0.03225157]
[1727998746386,0.33631176,60917.0,60916.0,0.028]
[1727998746666,0.34108659,60917.0,60916.0,0.028]
[1727998747672,0.34228054,60917.0,60916.0,0.014]
[1727998748446,0.34228054,60917.0,60916.0,0.015]
[1727998748686,0.34228054,60917.0,60916.0,0.001]
[1727998748945,0.0765,60916.0,60905.0,0.25061049]
[1727998749214,0.240685,60907.0,60905.0,0.25061049]
[1727998749473,0.164182,60908.0,60907.0,0.18665862]
[1727998749755,0.164169,60913.0,60908.0,0.023]
[1727998750006,0.164169,60913.0,60912.0,0.18665862]
[1727998750988,0.17013745,60913.0,60912.0,0.18665862]
[1727998751885,0.17013745,60913.0,60912.0,0.19265862]
[1727998752100,0.17013745,60913.0,60912.0,0.20165862]
[1727998752543,0.17013745,60913.0,60912.0,0.19265862]
[1727998752754,0.17013745,60913.0,60912.0,0.19865862]
[1727998753421,0.17013745,60913.0,60912.0,0.19265862]
[1727998753693,0.17013745,60913.0,60912.0,0.19865862]
[1727998754390,0.17013745,60913.0,60912.0,0.19265862]
[1727998754607,0.17013745,60913.0,60912.0,0.19865862]
[1727998755677,0.17013745,60913.0,60912.0,0.012]
[1727998755904,0.34173745,60913.0,60912.0,0.012]
[1727998756129,0.24663745,60913.0,60912.0,0.012]
[1727998756790,0.24663745,60913.0,60912.0,0.006]
[1727998757252,0.164179,60909.0,60908.0,0.18665862]
[1727998757728,0.00631381,60909.0,60908.0,0.34984533]
[1727998758623,0.00631381,60909.0,60905.0,0.0042626]
[1727998758851,0.328349,60911.0,60905.0,0.0042626]
[1727998758852,0.164187,60906.0,60905.0,0.0042626]
[1727998759076,0.164195,60904.0,60901.0,0.023]
[1727998759305,0.164195,60904.0,60902.0,0.16318671]
[1727998759530,0.0050174,60903.0,60902.0,0.18618671]
[1727998760272,0.164195,60904.0,60902.0,0.18618671]
[1727998761430,0.164195,60903.0,60902.0,0.17518671]
[1727998761660,0.16419,60905.0,60902.0,0.17518671]
[1727998761884,0.17045833,60903.0,60902.0,0.18018671]
[1727998762139,0.328381,60905.0,60902.0,0.18018671]
[1727998762358,0.00626333,60903.0,60902.0,0.17418671]
[1727998762584,0.164194,60904.0,60902.0,0.17418671]
[1727998762795,0.00626333,60903.0,60902.0,0.17818671]
[1727998763651,0.00626333,60903.0,60902.0,0.16718671]
[1727998763889,0.00626333,60903.0,60902.0,0.17118671]
[1727998764113,0.00626333,60903.0,60902.0,0.16318671]
[1727998764337,0.00626333,60903.0,60902.0,0.17218671]
[1727998764778,0.17045833,60903.0,60902.0,0.16918671]
[1727998765080,0.17045833,60903.0,60902.0,0.17518671]
[1727998765512,0.17045833,60903.0,60902.0,0.012]
[1727998768502,0.17045833,60903.0,60902.0,0.006]
[1727998769061,0.17045833,60903.0,60902.0,0.008]
[1727998769711,0.17045833,60903.0,60902.0,0.002]
[1727998769893,0.17045833,60903.0,60902.0,0.005]
[1727998770369,0.17045833,60903.0,60900.0,0.000817]
[1727998770370,0.1642,60901.0,60900.0,0.000817]
[1727998770793,0.17046347,60901.0,60900.0,0.000817]
[1727998771695,0.17046347,60901.0,60900.0,0.002817]
[1727998772697,0.17046347,60901.0,60900.0,0.005817]
[1727998773146,0.00626347,60901.0,60900.0,0.35667862]
[1727998773606,0.1642,60902.0,60900.0,0.19247562]
[1727998773835,0.00611317,60901.0,60900.0,0.19247562]
[1727998774509,0.00611317,60901.0,60900.0,0.18947562]
[1727998774736,0.17031317,60901.0,60900.0,0.000817]
[1727998774955,0.17031317,60901.0,60900.0,0.001817]
[1727998775424,0.17031317,60901.0,60900.0,0.000817]
[1727998775855,0.17031317,60901.0,60900.0,0.002817]
[1727998776278,0.17031317,60901.0,60900.0,0.000817]
[1727998776487,0.17031317,60901.0,60900.0,0.003817]
[1727998776716,0.17031317,60901.0,60900.0,0.005817]
[1727998779831,0.33871317,60901.0,60900.0,0.005817]
[1727998780724,0.33871317,60901.0,60900.0,0.000817]
[1727998780944,0.33871317,60901.0,60900.0,0.002817]
[1727998781652,0.33871317,60901.0,60900.0,0.001817]
[1727998782271,0.33871317,60901.0,60900.0,0.000817]
[1727998786261,0.41212852,60901.0,60900.0,0.000817]
[1727998787996,0.33871317,60901.0,60900.0,0.000817]
[1727998788222,0.32299277,60901.0,60900.0,0.000817]
[1727998788436,0.24831317,60901.0,60900.0,0.000817]
[1727998790922,0.29727804,60901.0,60900.0,0.000817]
[1727998791796,0.32302017,60901.0,60900.0,0.000817]
[1727998792461,0.2740553,60901.0,60900.0,0.000817]
[1727998792913,0.24831317,60901.0,60900.0,0.000817]
[1727998796075,0.34753591,60901.0,60900.0,0.000817]
[1727998797071,0.24831317,60901.0,60900.0,0.000817]
[1727998797294,0.55186205,60901.0,60900.0,0.000817]
[1727998797508,0.60407713,60901.0,60900.0,0.000817]
[1727998797945,0.60571313,60901.0,60900.0,0.000817]
[1727998799959,0.76889984,60901.0,60900.0,0.000817]
[1727998800399,0.91587067,60901.0,60900.0,0.000817]
[1727998800648,0.94161572,60901.0,60900.0,0.000817]
[1727998801378,0.79464489,60901.0,60900.0,0.000817]
[1727998801599,0.91587067,60901.0,60900.0,0.000817]
[1727998802258,0.76889984,60901.0,60900.0,0.000817]
[1727998802482,0.91515907,60901.0,60900.0,0.000817]
[1727998804234,0.76820736,60901.0,60900.0,0.000817]
[1727998804459,0.91515907,60901.0,60900.0,0.000817]
[1727998805314,0.76820736,60901.0,60900.0,0.000817]
[1727998805501,0.91515907,60901.0,60900.0,0.000817]
[1727998806124,0.94090395,60901.0,60900.0,0.000817]
[1727998807272,0.79387731,60901.0,60900.0,0.000817]
[1727998807501,0.94080348,60901.0,60900.0,0.000817]
[1727998808183,0.79387731,60901.0,60900.0,0.000817]
[1727998808397,0.94080348,60901.0,60900.0,0.000817]
[1727998809244,0.9150586,60901.0,60900.0,0.000817]
[1727998812067,1.06205625,60901.0,60900.0,0.000817]
[1727998813100,1.3544237,60901.0,60900.0,0.000817]
[1727998813465,1.20753227,60901.0,60900.0,0.000817]
[1727998813679,1.18317791,60901.0,60900.0,0.000817]
[1727998813925,0.89077572,60901.0,60900.0,0.000817]
[1727998818281,0.91652047,60901.0,60900.0,0.000817]
[1727998818514,1.2089584,60901.0,60900.0,0.000817]
[1727998821257,1.2109584,60901.0,60900.0,0.000817]
[1727998821465,1.28521365,60901.0,60900.0,0.000817]
[1727998822112,1.28321365,60901.0,60900.0,0.000817]
[1727998822844,1.28521365,60901.0,60900.0,0.001817]
[1727998823053,1.28321365,60901.0,60900.0,0.001817]
[1727998823306,1.28321365,60901.0,60900.0,0.000817]
[1727998823526,1.28621365,60901.0,60900.0,0.002817]
[1727998823746,1.35046913,60901.0,60900.0,0.002817]
[1727998824678,1.16160634,60901.0,60900.0,0.002817]
[1727998824886,0.67516841,60901.0,60900.0,0.002817]
[1727998825357,0.5119817,60901.0,60900.0,0.002817]
[1727998831273,0.5119263,60901.0,60900.0,0.002817]
[1727998832343,0.53767079,60901.0,60900.0,0.002817]
[1727998834314,0.60686092,60901.0,60900.0,0.002817]
[1727998834552,0.45355762,60901.0,60900.0,0.002817]
[1727998835275,0.52400091,60901.0,60900.0,0.001817]
[1727998835916,0.19258049,60901.0,60900.0,0.001817]
[1727998836146,0.31524601,60901.0,60900.0,0.001817]
[1727998836403,0.52392871,60901.0,60900.0,0.000817]
[1727998836619,0.52492871,60901.0,60900.0,0.000817]
[1727998837041,0.52592871,60901.0,60900.0,0.000817]
[1727998837472,0.50018422,60901.0,60900.0,0.000817]
[1727998837700,0.50018422,60901.0,60900.0,0.26062]
[1727998837701,0.33598422,60901.0,60900.0,0.26062]
[1727998837927,0.33598422,60901.0,60900.0,0.34072]
[1727998837928,0.19990123,60901.0,60900.0,0.34072]
[1727998838138,0.19990123,60901.0,60900.0,0.50390671]
[1727998838580,0.19990123,60901.0,60900.0,0.176517]
[1727998839053,0.19990123,60901.0,60900.0,0.182517]
[1727998839276,0.07723571,60901.0,60900.0,0.182517]
[1727998839505,0.003636,60901.0,60900.0,0.182517]
[1727998839751,0.001636,60901.0,60900.0,0.176517]
[1727998840277,0.001636,60901.0,60900.0,0.186517]
[1727998840488,0.001636,60901.0,60900.0,0.180517]
[1727998840697,0.001636,60901.0,60900.0,0.184517]
[1727998842020,0.001636,60901.0,60900.0,0.34872]
[1727998842268,0.001636,60901.0,60900.0,0.51190671]
[1727998847735,0.001636,60901.0,60900.0,0.26862]
[1727998848906,0.001636,60901.0,60900.0,0.104417]
[1727998849575,0.165836,60901.0,60900.0,0.008817]
[1727998849786,0.001636,60901.0,60900.0,0.008817]
[1727998850874,0.001636,60901.0,60900.0,0.17302]
[1727998854264,0.001636,60901.0,60900.0,0.008817]
[1727998858183,0.001636,60901.0,60900.0,0.17302]
[1727998860678,0.001636,60901.0,60900.0,0.27292]
[1727998866165,0.001636,60901.0,60900.0,0.43610671]
[1727998866387,0.001636,60901.0,60900.0,0.51300671]
[1727998866989,0.001636,60901.0,60900.0,0.53600671]
[1727998867664,0.001636,60901.0,60900.0,0.72267838]
[1727998871134,0.001636,60901.0,60900.0,0.82267838]
[1727998871577,0.001636,60901.0,60900.0,0.81867838]
[1727998871804,0.001636,60901.0,60900.0,0.83167838]
[1727998872019,0.001636,60901.0,60900.0,0.82767838]
[1727998872259,0.001636,60901.0,60900.0,0.82867838]
[1727998872480,0.001636,60901.0,60900.0,0.84267838]
[1727998872688,0.001636,60901.0,60900.0,0.83067838]
[1727998872899,0.001636,60901.0,60900.0,0.84467838]
[1727998875198,0.001636,60901.0,60900.0,0.84967838]
[1727998875409,0.00055476,60917.0,60908.0,0.164182]
[1727998875410,0.24634789,60911.0,60908.0,0.164182]
[1727998875629,0.24634789,60911.0,60908.0,0.81434038]
[1727998876266,0.00055476,60917.0,60908.0,0.81434038]
[1727998876481,0.00055476,60917.0,60908.0,0.82734038]
[1727998876700,0.00055476,60917.0,60908.0,0.83934038]
[1727998876929,0.00055476,60917.0,60908.0,0.84134038]
[1727998878034,0.00055476,60917.0,60908.0,0.82934038]
[1727998878260,0.00055476,60917.0,60908.0,0.81634038]
[1727998878527,0.00055476,60917.0,60908.0,0.83034038]
[1727998878774,0.00055476,60917.0,60916.0,0.65313167]
[1727998878987,0.00055476,60917.0,60916.0,0.81631838]
[1727998879748,0.000818,60940.0,60924.0,0.2953]
[1727998879990,0.000818,60940.0,60926.0,0.387533]
[1727998880236,0.077836,60938.0,60926.0,0.57420467]
[1727998880437,0.001636,60938.0,60926.0,0.57620467]
[1727998881374,0.001636,60938.0,60926.0,0.73939138]
[1727998881584,0.24798389,60938.0,60926.0,0.75339138]
[1727998882016,0.24798389,60938.0,60926.0,0.76739138]
[1727998883076,0.24798389,60938.0,60926.0,0.77164684]
[1727998885442,0.24798389,60938.0,60926.0,0.76964684]
[1727998886303,0.24798389,60938.0,60926.0,0.77164684]
[1727998889662,0.24798389,60938.0,60926.0,0.70733724]
[1727998889937,0.24798389,60938.0,60926.0,0.58297517]
[1727998890154,0.24798389,60938.0,60926.0,0.70533724]
[1727998891240,0.077836,60936.0,60926.0,0.70533724]
[1727998895198,0.077836,60936.0,60926.0,0.45957517]
[1727998895413,0.0939,60932.0,60926.0,0.35957517]
[1727998896537,0.082636,60927.0,60926.0,0.35957517]
[1727998896767,0.09060945,60927.0,60926.0,0.35957517]
[1727998896996,0.09060945,60927.0,60926.0,0.33157517]
[1727998897438,0.09060945,60927.0,60926.0,0.35957517]
[1727998897668,0.09060945,60927.0,60926.0,0.01825546]
[1727998897876,0.09060945,60927.0,60926.0,0.01625546]
[1727998898084,0.09060945,60927.0,60926.0,0.19138846]
[1727998899142,0.09060945,60927.0,60926.0,0.02725546]
[1727998899575,0.09060945,60927.0,60926.0,0.19138846]
[1727998900756,0.09060945,60927.0,60926.0,0.02725546]
[1727998901865,0.09060945,60927.0,60926.0,0.02889146]
[1727998903163,0.25473945,60927.0,60926.0,0.02889146]
[1727998903434,0.34863945,60927.0,60926.0,0.024636]
[1727998904227,0.34863945,60927.0,60926.0,0.012636]
[1727998904493,0.34863945,60927.0,60926.0,0.001636]
[1727998904732,0.081,60924.0,60914.0,0.0494553]
[1727998904998,0.339063,60915.0,60914.0,0.0494553]
[1727998905424,0.339063,60915.0,60906.0,0.24634789]
[1727998905425,0.081,60914.0,60906.0,0.24634789]
[1727998905662,0.164184,60907.0,60906.0,0.24634789]
[1727998905877,0.164184,60907.0,60906.0,0.00414924]
[1727998906096,0.164184,60907.0,60901.0,0.001636]
[1727998906097,0.00786883,60907.0,60901.0,0.001636]
[1727998906316,0.00786883,60907.0,60902.0,0.16318671]
[1727998906317,0.164185,60907.0,60902.0,0.16318671]
[1727998906529,0.17199928,60906.0,60902.0,0.16318671]
[1727998907719,0.00781128,60906.0,60902.0,0.16318671]
[1727998907962,0.16419,60905.0,60902.0,0.16318671]
[1727998908184,0.164195,60903.0,60902.0,0.16418671]
[1727998908434,0.245195,60903.0,60902.0,0.003]
[1727998908659,0.25299687,60903.0,60902.0,0.003]
[1727998909382,0.25299687,60903.0,60902.0,0.002]
[1727998909621,0.25299687,60903.0,60902.0,0.004]
[1727998910141,0.164198,60902.0,60901.0,0.001636]
[1727998910364,0.245898,60902.0,60901.0,0.001636]
[1727998910633,0.343698,60902.0,60901.0,0.001636]
[1727998910879,0.35150111,60902.0,60901.0,0.001636]
[1727998911831,0.35350111,60902.0,60901.0,0.001636]
[1727998912080,0.35150111,60902.0,60901.0,0.001636]
[1727998913897,0.35150111,60902.0,60901.0,0.003636]
[1727998913898,0.36250111,60902.0,60901.0,0.003636]
[1727998914123,0.38824449,60902.0,60901.0,0.003636]
[1727998916849,0.36250111,60902.0,60901.0,0.003636]
[1727998917482,0.26470111,60902.0,60901.0,0.003636]
[1727998917714,0.01880311,60902.0,60901.0,0.003636]
[1727998917928,0.011,60902.0,60901.0,0.003636]
[1727998918596,0.011,60902.0,60901.0,0.002636]
[1727998918811,0.004,60902.0,60901.0,0.002636]
[1727998919071,0.168198,60902.0,60901.0,0.004636]